bitfinex/quotes_ETHUSD_20250810
["timestamp","ask_amount","ask_price","bid_price","bid_amount"]
[1754799210307,0.002,4246.0,4245.2,2.31670121]
[1754799210473,0.1176,4246.7,4245.2,9.17363004]
[1754799210678,0.1176,4246.7,4245.2,10.12453004]
[1754799211807,0.002,4246.4,4245.2,10.12453004]
[1754799212019,1e-08,4245.3,4245.2,10.12453004]
[1754799212180,0.002,4246.4,4245.8,2.31645155]
[1754799212383,1e-08,4245.9,4245.8,9.17638038]
[1754799212581,1e-08,4245.9,4245.8,10.24488038]
[1754799212986,1e-08,4245.9,4245.8,6.60288038]
[1754799213209,1e-08,4245.9,4245.8,10.24688038]
[1754799213380,1e-08,4245.9,4245.8,10.98582544]
[1754799214298,0.04,4246.9,4246.1,0.55]
[1754799214504,0.04,4246.9,4246.8,1.8836356]
[1754799214705,0.04,4246.9,4246.8,2.10156443]
[1754799214912,0.04,4246.9,4246.8,6.86192883]
[1754799216189,0.04,4246.9,4246.8,3.21792883]
[1754799216394,0.1576,4246.9,4246.8,6.8591309]
[1754799216600,0.04,4246.9,4246.8,8.6251665]
[1754799216804,0.04,4246.9,4246.8,6.8591309]
[1754799217786,0.04,4246.9,4246.8,0.2161309]
[1754799217986,0.6148,4246.9,4246.8,3.8601309]
[1754799218206,0.85287447,4246.9,4246.8,3.8601309]
[1754799218515,2.61886848,4246.9,4246.8,3.8601309]
[1754799219205,0.85287447,4246.9,4246.8,3.8601309]
[1754799219402,2.61886848,4246.9,4246.8,3.8601309]
[1754799219713,2.98446848,4246.9,4246.8,3.8601309]
[1754799220719,2.98446848,4246.9,4246.8,0.2161309]
[1754799220891,2.98446848,4246.9,4246.8,3.8591309]
[1754799222623,2.98446848,4246.9,4246.8,3.8581309]
[1754799223193,2.98446848,4246.9,4246.8,3.8571309]
[1754799223394,2.98446848,4246.9,4246.8,3.8561309]
[1754799224224,2.16166848,4246.9,4246.8,3.8561309]
[1754799224426,0.04,4246.9,4246.8,9.5730665]
[1754799224679,0.04,4246.9,4246.8,10.2406665]
[1754799224940,0.04,4247.9,4247.3,3.0]
[1754799225114,0.04,4247.9,4247.8,1.76561985]
[1754799225318,0.04,4247.9,4247.8,1.98172437]
[1754799225499,0.04,4247.9,4247.8,3.05022437]
[1754799225705,0.04,4247.9,4247.8,6.69422437]
[1754799226106,0.04,4247.9,4247.8,4.92860452]
[1754799226316,0.04,4247.9,4247.8,6.69422437]
[1754799226920,0.04,4247.9,4247.8,6.69622437]
[1754799227131,0.04,4247.9,4247.8,3.05022437]
[1754799227434,0.04,4247.9,4247.8,1.28460452]
[1754799227598,0.04,4247.9,4247.8,4.92960452]
[1754799228000,0.04,4247.9,4247.8,6.69522437]
[1754799228218,0.04,4247.9,4247.8,6.69538306]
[1754799228614,0.04,4247.9,4247.8,4.92976321]
[1754799229435,0.04,4247.9,4247.8,6.69538306]
[1754799229733,0.04,4247.9,4247.8,4.92976321]
[1754799230642,0.04,4247.9,4247.8,0.21626321]
[1754799230844,0.04,4247.9,4247.8,6.09408306]
[1754799231040,2.230366,4248.5,4247.9,1.76554613]
[1754799231215,2.63012775,4248.5,4248.0,0.21626321]
[1754799231414,2.63012775,4248.5,4248.1,4.33246321]
[1754799231415,4.39547864,4248.5,4248.1,4.33246321]
[1754799231615,4.39547864,4248.5,4248.2,0.21626321]
[1754799231840,4.39547864,4248.5,4248.3,0.21626321]
[1754799232159,2.63012775,4248.5,4248.4,0.21626321]
[1754799232511,4.39545668,4248.5,4248.4,0.21626321]
[1754799233013,4.39545668,4248.5,4248.4,3.86426321]
[1754799233657,2.63012775,4248.5,4248.4,3.86426321]
[1754799233813,4.39545668,4248.5,4248.4,3.86426321]
[1754799234441,4.39545668,4248.5,4248.4,3.86470659]
[1754799234610,3.99569493,4248.5,4248.4,3.86470659]
[1754799236329,2.230366,4248.5,4248.4,3.86470659]
[1754799237549,3.99569493,4248.5,4248.4,3.86470659]
[1754799238614,3.99569493,4248.5,4248.4,3.85870659]
[1754799239706,4.48299493,4248.5,4248.4,3.85870659]
[1754799239852,5.5541793,4248.5,4248.4,3.85870659]
[1754799240157,5.5541793,4248.5,4248.4,3.85770659]
[1754799240613,5.6717793,4248.5,4248.4,3.85770659]
[1754799240817,5.6717793,4248.5,4248.4,0.21670659]
[1754799241740,1.76537049,4248.4,4248.3,3.642]
[1754799241954,3.57851034,4248.4,4248.3,3.85912612]
[1754799243770,3.57851034,4248.4,4248.3,0.21712612]
[1754799244371,1.76595243,4247.0,4246.6,0.937]
[1754799244573,1.48336237,4247.0,4246.7,4.1092]
[1754799244753,1.76616036,4246.5,4246.4,0.001]
[1754799244955,1.76613109,4246.6,4246.5,3.0]
[1754799245150,1.76613109,4246.6,4246.5,3.4702]
[1754799245687,1.76613109,4246.6,4246.4,0.001]
[1754799245889,1.76616036,4246.5,4246.4,0.701]
[1754799246048,0.1176,4246.9,4246.4,4.8102]
[1754799246376,0.1176,4246.9,4246.5,0.937]
[1754799246377,1.8837052,4246.7,4246.5,0.937]
[1754799246549,1.8837052,4246.7,4246.5,0.4668]
[1754799246749,1.8837052,4246.7,4246.6,0.4702]
[1754799246950,0.1176,4246.7,4246.6,0.4702]
[1754799247359,1.88367718,4246.7,4246.6,0.4702]
[1754799248086,1.76616036,4246.5,4246.4,4.34]
[1754799248285,1.88367718,4246.7,4246.4,4.34]
[1754799248286,0.1176,4246.7,4246.4,4.8102]
[1754799248462,1.76611877,4246.6,4246.4,4.8102]
[1754799248659,1.76616036,4246.5,4246.4,0.701]
[1754799248989,1.76616036,4246.5,4246.4,4.338]
[1754799249148,1.76616036,4246.5,4246.4,0.701]
[1754799249352,1.76616036,4246.5,4246.4,4.338]
[1754799249790,1.76616036,4246.5,4246.4,4.339]
[1754799251087,1.88368063,4246.7,4246.4,4.339]
[1754799251245,1.88367839,4246.7,4246.4,4.339]
[1754799251551,1.76611877,4246.6,4246.5,0.937]
[1754799251750,0.1176,4246.7,4246.6,0.937]
[1754799252064,1.76616036,4246.5,4246.4,4.339]
[1754799252277,1.76616036,4246.5,4246.4,4.338]
[1754799252863,1.76613189,4246.6,4246.4,4.338]
[1754799253068,1.76613189,4246.6,4246.5,0.937]
[1754799253271,1.76613189,4246.6,4246.4,0.701]
[1754799253272,1.76616036,4246.5,4246.4,0.701]
[1754799253481,1.76616036,4246.5,4246.4,4.336]
[1754799254297,1.76616036,4246.5,4246.4,0.701]
[1754799254451,2.61844959,4246.5,4246.4,0.701]
[1754799254651,3.02404959,4246.5,4246.4,4.337]
[1754799254863,3.02404959,4246.5,4245.2,0.1176]
[1754799254864,1.76711747,4244.2,4243.5,1.68997743]
[1754799255076,3.699,4245.7,4244.1,3.7]
[1754799255277,3.4056,4245.7,4244.4,0.001]
[1754799255461,0.1518,4245.9,4244.5,3.7]
[1754799255462,1.76694758,4244.7,4244.5,3.7]
[1754799255663,1.76694758,4244.7,4244.6,0.937]
[1754799256084,1.76683179,4244.9,4244.5,3.7]
[1754799256085,1.76695094,4244.6,4244.5,3.7]
[1754799256255,1.76683179,4244.9,4244.5,3.91745242]
[1754799256461,1.76690932,4244.7,4244.6,0.21745013]
[1754799257074,1.76690932,4244.7,4244.6,3.91945013]
[1754799257268,0.4056,4245.6,4244.6,3.91945013]
[1754799257451,1.76685058,4244.9,4244.7,0.21745013]
[1754799257652,0.1518,4246.2,4244.6,4.5944]
[1754799257653,0.72394837,4246.1,4244.8,0.21745013]
[1754799257852,0.4056,4246.4,4244.9,0.65135013]
[1754799258053,2.31624355,4246.3,4245.0,3.91945013]
[1754799258283,2.31624355,4246.3,4244.7,0.4585]
[1754799258284,1.76663325,4245.4,4245.1,3.91945013]
[1754799258586,1.76666021,4245.3,4245.2,3.91945013]
[1754799258787,0.4056,4246.2,4245.2,3.91945013]
[1754799258969,0.34056,4246.1,4245.3,0.21745013]
[1754799259283,1.76658395,4245.5,4245.4,0.21745013]
[1754799259484,1.76653352,4245.7,4245.4,0.21745013]
[1754799259784,1.76653352,4245.7,4245.5,0.21745013]
[1754799260099,1.76653352,4245.7,4245.6,0.21745013]
[1754799264866,1.88413352,4245.7,4245.6,0.21745013]
[1754799265067,2.24918851,4245.7,4245.6,0.21745013]
[1754799269297,0.1176,4245.7,4245.6,0.21745013]
[1754799269497,0.04,4246.9,4245.6,1.10985013]
[1754799269498,0.1176,4246.0,4245.6,1.10985013]
[1754799269736,0.04,4246.9,4245.7,4.80085013]
[1754799269996,0.04,4246.9,4246.3,1.76621317]
[1754799270181,0.04,4246.9,4246.4,5.67578413]
[1754799270377,1.80600613,4246.9,4246.5,0.21758228]
[1754799270575,1.76607718,4246.7,4246.6,0.21758228]
[1754799270775,1.88367718,4246.7,4246.6,0.21758228]
[1754799271188,1.88367718,4246.7,4246.2,3.694]
[1754799271189,1.76616547,4246.5,4246.2,3.694]
[1754799271388,0.22060061,4246.9,4246.3,0.21769709]
[1754799271595,0.1176,4246.3,4246.2,3.695]
[1754799271895,1.88384355,4246.3,4246.2,3.91272856]
[1754799273904,1.88384355,4246.3,4246.2,3.9130768]
[1754799275240,1.88384355,4246.3,4246.2,0.2180768]
[1754799275396,1.76624355,4246.3,4246.2,0.2180768]
[1754799275579,2.11948888,4246.3,4246.2,0.2180768]
[1754799277008,2.11948888,4246.3,4246.2,1.1104768]
[1754799278282,0.04,4246.9,4246.2,4.7964768]
[1754799278498,1.76607718,4246.7,4246.3,0.2180768]
[1754799278699,1.76607718,4246.7,4246.2,4.5784]
[1754799278700,1.76614102,4246.6,4246.4,1.1104768]
[1754799279017,0.04,4246.9,4246.5,1.1104768]
[1754799279326,0.04,4246.9,4246.6,0.2180768]
[1754799279525,1.7660356,4246.8,4246.7,0.2180768]
[1754799280089,2.12323729,4246.8,4246.7,0.2180768]
[1754799282922,2.52883729,4246.8,4246.7,0.2180768]
[1754799284133,2.12323729,4246.8,4246.7,0.2180768]
[1754799285521,2.24083729,4246.8,4246.7,0.2180768]
[1754799285723,1.76624355,4246.3,4246.2,3.686]
[1754799285889,1.88384355,4246.3,4246.2,0.21867005]
[1754799287103,1.88384355,4246.3,4244.5,1.68997743]
[1754799287104,13.73972279,4246.5,4245.1,0.001]
[1754799287303,0.4056,4246.3,4245.2,0.494]
[1754799287601,1.76667731,4245.3,4245.2,0.494]
[1754799287801,1.76667731,4245.3,4245.2,0.931]
[1754799287996,1.76670121,4245.2,4245.1,0.001]
[1754799289100,1.76670121,4245.2,4245.1,0.495]
[1754799289939,1.76670121,4245.2,4245.1,0.001]
[1754799292636,1.76670121,4245.2,4245.1,0.932]
[1754799296343,1.76624355,4246.3,4245.1,0.932]
[1754799296642,1.76655864,4245.6,4245.2,0.931]
[1754799297132,0.1176,4245.4,4245.3,4.611]
[1754799299101,0.1176,4245.4,4245.3,4.82984352]
[1754799300404,0.1176,4245.4,4245.3,6.59650312]
[1754799300607,0.1176,4245.4,4245.3,9.59650312]
[1754799300926,1.766132,4246.6,4245.4,3.0]
[1754799301125,0.1176,4246.0,4245.5,1.14984352]
[1754799301322,0.1176,4246.0,4245.6,1.14984352]
[1754799301529,0.1176,4246.5,4246.0,4.76636834]
[1754799301723,0.1176,4246.5,4246.1,9.59215797]
[1754799301922,0.1176,4246.5,4246.2,2.91611641]
[1754799302107,0.1176,4246.5,4246.3,0.21884352]
[1754799302307,0.1176,4246.5,4246.4,1.14984352]
[1754799303844,1.88376036,4246.5,4246.4,0.71284352]
[1754799304034,1.88376036,4246.5,4246.4,0.21884352]
[1754799304340,0.1176,4246.5,4246.4,0.21884352]
[1754799304856,0.1176,4246.5,4246.4,1.14984352]
[1754799305056,0.042,4246.9,4246.4,1.9150401]
[1754799305354,0.1596,4246.9,4246.5,4.82384352]
[1754799305552,0.1596,4246.9,4246.6,0.21884352]
[1754799305712,0.1596,4246.9,4246.7,0.21884352]
[1754799305911,0.1596,4246.9,4246.8,0.21884352]
[1754799306127,0.1596,4246.9,4246.8,1.14984352]
[1754799308444,0.1596,4246.9,4246.8,1.14921559]
[1754799311069,1.92559401,4246.9,4246.8,0.21821559]
[1754799311251,0.1596,4246.9,4246.8,0.21821559]
[1754799312423,0.002,4247.0,4246.9,1.76599401]
[1754799312622,0.002,4247.0,4246.9,9.5832096]
[1754799312851,0.002,4247.0,4246.9,10.1332096]
[1754799313251,0.002,4247.4,4246.9,10.2508096]
[1754799313452,0.002,4247.4,4247.3,1.8834277]
[1754799313653,0.002,4247.4,4247.3,6.5634987]
[1754799313872,0.002,4247.4,4247.3,7.4944987]
[1754799314031,0.002,4247.4,4247.3,7.3768987]
[1754799316260,1.76778612,4247.4,4247.3,3.89821559]
[1754799316456,0.8386,4247.4,4245.3,0.001]
[1754799316803,0.1176,4246.3,4245.7,2.69745773]
[1754799316963,1.88385765,4246.3,4245.8,3.685]
[1754799317297,0.1176,4246.3,4245.9,1.40096]
[1754799317500,0.1176,4246.3,4246.0,0.9276]
[1754799317871,0.1176,4246.3,4246.1,0.9276]
[1754799318059,1.88384355,4246.3,4246.2,3.684]
[1754799319686,0.1176,4246.3,4246.2,3.684]
[1754799319885,1.88384355,4246.3,4246.2,3.684]
[1754799321370,1.76647387,4245.8,4245.3,0.001]
[1754799321558,0.1176,4245.6,4245.4,3.681]
[1754799321764,1.76657637,4245.5,4245.4,6.681]
[1754799322108,0.1176,4245.6,4245.3,0.001]
[1754799322266,1.76661798,4245.4,4245.3,0.001]
[1754799322480,1.76657897,4245.5,4245.3,0.001]
[1754799322680,1.76657637,4245.5,4245.3,0.001]
[1754799323784,0.1176,4245.6,4245.3,0.001]
[1754799324181,1.88414049,4245.6,4245.3,0.001]
[1754799324581,0.1176,4245.6,4245.3,0.001]
[1754799325613,0.1176,4245.6,4245.3,3.681]
[1754799327486,1.88414109,4245.6,4245.3,3.681]
[1754799327817,0.1176,4245.6,4245.3,0.001]
[1754799328016,1.88416566,4245.6,4245.3,0.001]
[1754799328183,1.76658252,4245.5,4245.3,0.001]
[1754799328383,0.1176,4245.6,4245.4,0.21801108]
[1754799328600,0.1176,4245.6,4245.5,0.21801108]
[1754799329010,1.88413476,4245.6,4245.5,0.21801108]
[1754799329315,0.1176,4245.6,4245.5,0.21801108]
[1754799329902,0.1176,4245.6,4245.5,1.14561108]
[1754799330333,0.1176,4245.6,4245.5,4.81861108]
[1754799330631,0.1176,4245.6,4245.5,5.47723749]
[1754799330994,0.1176,4245.6,4245.5,7.24381386]
[1754799331201,0.1176,4245.6,4245.5,10.24381386]
[1754799331402,1.76614796,4246.6,4245.6,3.0]
[1754799331602,0.1176,4246.1,4245.7,1.14561108]
[1754799331837,0.1176,4246.1,4245.8,1.37759483]
[1754799332015,1.76636834,4246.0,4245.9,0.21801108]
[1754799332213,1.88396834,4246.0,4245.9,0.21801108]
[1754799332413,2.60296834,4246.0,4245.9,0.21801108]
[1754799334038,2.29156834,4246.0,4245.9,0.21801108]
[1754799334246,2.6973541,4246.0,4245.9,0.21801108]
[1754799334407,3.0087541,4246.0,4245.9,0.21801108]
[1754799336317,1.76653476,4245.6,4245.5,0.001]
[1754799336512,1.76653476,4245.6,4245.5,0.21900791]
[1754799336513,1.88413476,4245.6,4245.5,0.21900791]
[1754799336836,3.09589616,4245.6,4245.5,0.21900791]
[1754799337548,3.40729616,4245.6,4245.5,0.21900791]
[1754799338135,3.09589616,4245.6,4245.5,0.21900791]
[1754799338326,0.55,4245.0,4244.8,0.001]
[1754799338523,4.76657637,4245.5,4244.7,0.001]
[1754799338524,0.55,4244.8,4244.7,0.001]
[1754799338843,6.2153503,4244.8,4244.7,0.001]
[1754799339043,6.9343503,4244.8,4244.7,0.001]
[1754799339219,2.6653503,4244.8,4244.7,0.001]
[1754799339419,6.3363503,4244.8,4244.7,0.001]
[1754799341051,2.6653503,4244.8,4244.7,0.001]
[1754799341258,1.76686769,4244.8,4244.7,0.001]
[1754799342126,1.76686769,4244.8,4244.7,0.4673]
[1754799342322,1.76678275,4245.1,4244.7,0.9286]
[1754799342629,1.76686769,4244.8,4244.7,0.001]
[1754799343056,1.76686769,4244.8,4244.7,0.9286]
[1754799343355,1.76686769,4244.8,4244.7,0.001]
[1754799343561,2.12023346,4244.8,4244.7,0.001]
[1754799344849,5.79423346,4244.8,4244.7,0.001]
[1754799346058,6.20183346,4244.8,4244.7,0.001]
[1754799346459,5.79423346,4244.8,4244.7,0.001]
[1754799346630,2.12023346,4244.8,4244.7,0.001]
[1754799346828,5.79123346,4244.8,4244.7,0.001]
[1754799347262,0.8041614,4245.6,4244.7,0.9558]
[1754799347466,1.76686769,4244.8,4244.7,0.9558]
[1754799348264,1.76686769,4244.8,4244.7,0.001]
[1754799348265,1.88446769,4244.8,4244.7,0.001]
[1754799348566,5.55746769,4244.8,4244.7,0.001]
[1754799348873,6.27646769,4244.8,4244.7,0.001]
[1754799349043,5.96506769,4244.8,4244.7,0.001]
[1754799349358,7.04965575,4244.8,4244.7,0.001]
[1754799349729,6.73825575,4244.8,4244.7,0.001]
[1754799350355,6.73825575,4244.8,4244.7,0.21934036]
[1754799351542,6.33065575,4244.8,4244.7,0.21934036]
[1754799351733,6.32865575,4244.8,4244.7,0.21934036]
[1754799351936,6.32865575,4244.8,4244.7,0.21938914]
[1754799353572,6.73625575,4244.8,4244.7,0.21938914]
[1754799353735,6.32865575,4244.8,4244.7,0.21938914]
[1754799353937,7.04765575,4244.8,4244.7,0.21938914]
[1754799354138,2.65765575,4244.8,4244.7,0.21938914]
[1754799354339,5.55646769,4244.8,4244.7,0.21938914]
[1754799357077,5.96406769,4244.8,4244.7,0.21938914]
[1754799357376,6.27546769,4244.8,4244.7,0.21938914]
[1754799357739,5.96406769,4244.8,4244.7,0.21938914]
[1754799358561,5.96406769,4244.8,4244.6,1e-08]
[1754799358562,1.76690932,4244.7,4244.6,1e-08]
[1754799358744,11.43332725,4244.7,4244.6,1e-08]
[1754799359482,1.76699257,4244.5,4244.1,0.001]
[1754799359674,1.76707584,4244.3,4244.2,1e-08]
[1754799359875,2.57114268,4244.3,4244.2,1e-08]
[1754799360082,2.97874268,4244.3,4244.2,1e-08]
[1754799360259,1.76715911,4244.1,4244.0,0.001]
[1754799360459,5.55375911,4244.1,4244.0,0.001]
[1754799360845,8.55375911,4244.1,4244.0,0.001]
[1754799361047,9.70701345,4244.1,4244.0,0.001]
[1754799362250,1.76728403,4243.8,4243.6,1e-08]
[1754799362448,5.55392568,4243.7,4243.6,1e-08]
[1754799366980,8.55392568,4243.7,4243.6,1e-08]
[1754799367183,1.76745062,4243.4,4243.3,1e-08]
[1754799367368,5.43045062,4243.4,4243.3,1e-08]
[1754799368000,9.09805062,4243.4,4243.3,1e-08]
[1754799368163,9.50565062,4243.4,4243.3,1e-08]
[1754799368510,9.09805062,4243.4,4243.3,1e-08]
[1754799368673,11.18505983,4243.4,4243.3,1e-08]
[1754799370397,6.97205983,4243.4,4243.3,1e-08]
[1754799370600,5.54705062,4243.4,4243.3,1.17356615]
[1754799372176,5.54705062,4243.4,4243.3,1.17364803]
[1754799372586,1.88505062,4243.4,4243.3,1.17364803]
[1754799372868,0.1176,4243.4,4243.3,1.17364803]
[1754799373275,1.88505062,4243.4,4243.3,1.17364803]
[1754799373894,0.1176,4243.4,4243.3,1.17364803]
[1754799374098,0.1176,4243.4,4243.3,0.95480001]
[1754799374301,0.1176,4243.4,4243.3,1.17359308]
[1754799375009,3.66,4243.8,4243.5,1.76740536]
[1754799375212,3.66,4243.8,4243.3,1.17359308]
[1754799375213,1.76704294,4244.4,4243.6,1.17359307]
[1754799375428,0.1176,4243.8,4243.7,12.33043454]
[1754799375629,3.661,4244.7,4244.2,1.76711406]
[1754799375829,3.661,4244.7,4244.3,1.17359307]
[1754799376002,0.1176,4244.4,4244.3,0.9548]
[1754799376203,0.1176,4244.4,4244.3,0.21881005]
[1754799376928,0.1176,4244.4,4244.3,1.17361005]
[1754799378906,1.8846342,4244.4,4244.3,1.17361005]
[1754799379904,0.1176,4244.4,4244.3,1.17361005]
[1754799380103,1.8846342,4244.4,4244.3,1.17361005]
[1754799383332,1.8846342,4244.4,4244.3,0.21881005]
[1754799383539,2.61589302,4244.4,4244.3,0.21881005]
[1754799384331,1.8846342,4244.4,4244.3,0.21881005]
[1754799385301,5.5386342,4244.4,4244.3,0.21881005]
[1754799385506,0.1176,4244.4,4244.3,1.16111005]
[1754799385706,0.002,4244.8,4244.3,1.16111005]
[1754799385907,0.002,4244.8,4244.5,1.76695445]
[1754799386104,0.002,4244.8,4244.6,1.98575948]
[1754799386319,0.002,4244.8,4244.7,1.98571937]
[1754799386523,0.1196,4244.8,4244.7,1.16111005]
[1754799387754,1.88646769,4244.8,4244.7,0.21881005]
[1754799394573,5.53546769,4244.8,4244.7,0.21881005]
[1754799394778,6.3064555,4244.8,4244.7,0.21881005]
[1754799395647,1.76715911,4244.1,4244.0,0.4664]
[1754799395864,1.88475911,4244.1,4244.0,0.68428118]
[1754799396057,1.88475911,4244.1,4244.0,1.16018118]
[1754799396058,0.1176,4244.1,4244.0,1.16018118]
[1754799397566,1.88475911,4244.1,4244.0,1.16018118]
[1754799398876,0.1176,4244.1,4244.0,1.16018118]
[1754799400676,1.88475911,4244.1,4244.0,1.16018118]
[1754799401568,0.1176,4244.1,4244.0,1.16018118]
[1754799401741,1.88475911,4244.1,4244.0,1.16018118]
[1754799403487,0.002,4244.8,4244.0,4.16018118]
[1754799403671,0.1176,4244.7,4244.4,9.9237469]
[1754799403977,0.1176,4244.7,4244.5,1.16018118]
[1754799404183,0.1176,4244.7,4244.6,0.21788118]
[1754799404378,0.1176,4244.7,4244.6,1.16018118]
[1754799404578,0.1176,4244.7,4244.6,2.92804931]
[1754799405582,0.1176,4244.7,4244.6,0.21879837]
[1754799406085,0.1176,4244.7,4244.6,0.68519837]
[1754799406286,0.1176,4244.7,4244.6,1.16109837]
[1754799406785,0.1176,4244.7,4244.6,2.92804931]
[1754799409159,0.1176,4244.7,4244.6,3.39755671]
[1754799410377,0.1176,4244.7,4244.6,3.39766964]
[1754799410887,0.1176,4244.7,4244.6,0.6884187]
[1754799411094,0.1176,4244.7,4244.6,0.2189113]
[1754799411398,0.1176,4244.7,4244.6,1.1770113]
[1754799411600,0.1176,4244.7,4244.6,2.94396224]
[1754799413174,0.1176,4244.7,4244.6,0.6867113]
[1754799413373,0.1176,4244.7,4244.6,0.2189113]
[1754799413794,0.1176,4244.7,4244.6,0.6867113]
[1754799415373,0.1176,4244.7,4244.6,3.8619113]
[1754799415574,1.88450932,4244.7,4244.6,3.8619113]
[1754799415788,0.1176,4244.7,4244.6,3.8619113]
[1754799416502,1.88450932,4244.7,4244.6,3.8619113]
[1754799417076,0.1176,4244.7,4244.6,3.8619113]
[1754799417905,0.1196,4244.7,4244.6,3.8619113]
[1754799418105,0.1196,4244.7,4244.6,3.643]
[1754799418280,0.1196,4244.7,4244.6,3.86194561]
[1754799418799,2.07535661,4244.7,4244.6,0.21894561]
[1754799418996,5.95715661,4244.7,4244.6,0.21894561]
[1754799419190,5.54955661,4244.7,4244.6,0.21894561]
[1754799419709,5.95715661,4244.7,4244.6,0.21894561]
[1754799420572,9.60015661,4244.7,4244.6,0.21894561]
[1754799421306,1.76711747,4244.2,4244.1,0.001]
[1754799421494,1.88471747,4244.2,4244.1,0.001]
[1754799421686,2.76651747,4244.2,4244.1,0.001]
[1754799422088,17.56624259,4244.2,4244.1,1e-08]
[1754799422292,20.04957313,4244.2,4244.1,1e-08]
[1754799422711,20.5570565,4244.2,4244.1,1e-08]
[1754799422918,20.77732513,4244.2,4244.1,1e-08]
[1754799424216,21.41051688,4244.2,4244.1,1e-08]
[1754799424420,20.77732513,4244.2,4244.1,1e-08]
[1754799424713,12.62060001,4244.2,4244.1,1e-08]
[1754799426135,1.76770057,4242.8,4241.6,0.04]
[1754799426430,1.76786724,4242.4,4241.6,0.04]
[1754799426624,1.88546724,4242.4,4241.6,0.04]
[1754799428606,9.96126724,4242.4,4242.3,1e-08]
[1754799433799,4.88546724,4242.4,4242.3,1e-08]
[1754799434004,9.19479235,4242.4,4242.3,0.95810001]
[1754799434203,8.52946724,4242.4,4242.3,0.95810001]
[1754799434830,5.52946724,4242.4,4242.3,0.95810001]
[1754799435729,5.70615754,4242.4,4242.3,0.95810001]
[1754799436704,0.1176,4242.4,4242.3,1.17548926]
[1754799439612,1.88546724,4242.4,4242.3,1.17548926]
[1754799440110,1.81643916,4244.0,4242.3,1.17548926]
[1754799440439,0.862,4244.8,4243.1,2.31757559]
[1754799440440,0.002,4244.8,4243.1,2.31757559]
[1754799440648,0.002,4244.8,4243.6,3.55]
[1754799440938,0.002,4244.8,4244.4,1.76701778]
[1754799441106,1.76695094,4244.6,4244.5,0.21738925]
[1754799441306,1.76695094,4244.6,4244.5,1.10078925]
[1754799441510,1.88455094,4244.6,4244.5,0.21738925]
[1754799441735,2.25409399,4244.6,4244.5,0.21738925]
[1754799442140,1.88455094,4244.6,4244.5,0.21738925]
[1754799442644,5.52955094,4244.6,4244.5,0.21738925]
[1754799443320,5.52955094,4244.6,4243.9,0.43]
[1754799443321,1.76720075,4244.0,4243.9,0.43]
[1754799443519,1.76728403,4243.8,4243.7,0.4534]
[1754799443726,1.76728403,4243.8,4243.6,0.43]
[1754799443727,1.76732568,4243.7,4243.6,0.43]
[1754799444009,1.88492568,4243.7,4243.6,0.43]
[1754799444833,2.42686673,4243.7,4243.6,0.43]
[1754799445031,0.1176,4243.7,4242.8,0.4534]
[1754799445223,3.644,4243.8,4242.8,0.4534]
[1754799445422,0.1176,4242.9,4242.8,0.4534]
[1754799445629,1.88525891,4242.9,4242.8,0.8834]
[1754799446724,1.88525891,4242.9,4242.8,0.43]
[1754799447142,1.76786724,4242.4,4242.3,1e-08]
[1754799447844,1.76786724,4242.4,4242.3,0.88340001]
[1754799448642,1.76786724,4242.4,4242.3,0.43000001]
[1754799450097,1.76786724,4242.4,4242.3,1e-08]
[1754799450246,2.13319489,4242.4,4242.3,1e-08]
[1754799450761,1.76786724,4242.4,4242.3,0.88340001]
[1754799452339,1.76786724,4242.4,4242.3,0.43000001]
[1754799452714,1.76786724,4242.4,4242.3,0.88340001]
[1754799454139,1.76786724,4242.4,4242.3,1e-08]
[1754799454341,1.76786724,4242.4,4242.3,0.43000001]
[1754799455332,1.76786724,4242.4,4242.3,0.64865968]
[1754799457942,1.76786724,4242.4,4242.3,1.10205968]
[1754799458771,0.1176,4242.5,4242.3,1.10205968]
[1754799458923,0.1176,4242.5,4242.4,0.21867487]
[1754799459119,0.1176,4242.5,4242.4,1.10207487]
[1754799459554,1.88545701,4242.5,4242.4,1.10207487]
[1754799460050,1.88545701,4242.5,4242.4,0.64867487]
[1754799460265,1.88545701,4242.5,4242.4,1.34867487]
[1754799460569,1.88545701,4242.5,4242.4,0.91867487]
[1754799467543,1.88545701,4242.5,4242.4,1.38737487]
[1754799467939,0.1176,4242.5,4242.4,1.84826826]
[1754799468153,1.88542557,4242.5,4242.4,1.84826826]
[1754799469640,1.88542557,4242.5,4242.4,1.8410834]
[1754799470264,0.1176,4242.5,4242.4,1.8410834]
[1754799470775,1.88542557,4242.5,4242.4,1.8410834]
[1754799470940,0.1176,4242.5,4242.4,1.8410834]
[1754799471272,1.88542557,4242.5,4242.4,1.8410834]
[1754799471447,0.1176,4242.5,4242.4,1.8410834]
[1754799471777,1.88542557,4242.5,4242.4,1.8410834]
[1754799472843,0.1176,4242.5,4242.4,1.3805834]
[1754799473044,1.88542557,4242.5,4242.4,0.9118834]
[1754799476660,1.88542557,4242.5,4242.4,0.91264537]
[1754799476856,1.88542557,4242.5,4242.4,1.38134537]
[1754799477274,1.88542557,4242.5,4242.4,0.91264537]
[1754799484678,2.29926247,4242.5,4242.4,0.91264537]
[1754799494097,1.88542557,4242.5,4242.4,0.91264537]
[1754799494897,1.88542557,4242.5,4242.4,1.38134537]
[1754799495474,7.54570657,4242.5,4242.4,0.91264537]
[1754799495703,7.54570657,4242.5,4242.4,1.84184537]
[1754799496898,5.777881,4242.5,4242.4,1.84184537]
[1754799497568,7.54570657,4242.5,4242.4,1.84184537]
[1754799498166,5.660281,4242.5,4242.4,12.32146007]
[1754799498366,5.3773834,4242.5,4242.4,15.87146007]
[1754799498588,5.3773834,4242.5,4242.4,15.98906007]
[1754799499093,5.3773834,4242.5,4242.4,15.98841651]
[1754799500312,5.09452081,4242.5,4242.4,15.98841651]
[1754799500990,0.002,4243.4,4242.6,0.55]
[1754799501170,0.002,4243.4,4243.3,9.9309552]
[1754799501370,0.002,4243.4,4243.3,13.90774187]
[1754799501683,0.002,4243.4,4243.3,14.83124187]
[1754799502816,0.002,4243.4,4243.3,18.38124187]
[1754799508014,0.002,4243.4,4243.3,18.37981709]
[1754799508210,0.002,4243.4,4243.3,18.92810163]